[Event "Romanian Team Rapid Women 2022"]
[Site "Sebes"]
[Date "2022.12.03"]
[Round "1.1"]
[White "Peptan, Corina-Isabela"]
[Black "Bulmaga, Irina"]
[Result "1/2-1/2"]
[ECO "A31"]
[WhiteElo "2351"]
[BlackElo "2426"]
[Annotator "TA"]
[PlyCount "72"]
[EventDate "2022.12.03"]
[EventType "rapid"]
[EventCountry "ROU"]
[SourceTitle "playchess.com"]
[Source "ChessBase"]
[SourceQuality "1"]
[TimeControl "900+10"]

{[%evp 18,72,75,69,72,70,100,65,187,68,140,19,87,83,93,77,83,53,110,92,184,102,172,130,113,49,67,49,404,68,390,60,61,27,70,50,63,62,79,72,70,0,51,-57,-52,-58,-46,-51,-59,-45,0,0,0,-40,-6,-149,-95]} 1. Nf3 {[%emt 0:00:03]} c5 {[%emt 0:00:05]} 2. c4 {[%emt 0:00:02]} g6 {[%emt 0:00:03]} 3. Nc3 {[%emt 0:00:06]} Bg7 {[%emt 0:00:03]} 4. e4 {[%emt 0:00:40]} d6 {[%emt 0:00:08]} 5. d4 {[%emt 0:00:09]} cxd4 {[%emt 0:00:05]} 6. Nxd4 {[%emt 0:00:01]} a6 {[%emt 0:00:19]} 7. Be3 {[%emt 0:00:07]} Nf6 {[%emt 0:00:38]} 8. Be2 {[%emt 0:00:03]} O-O {[%emt 0:00:20]} 9. O-O {[%emt 0:00:17]} b6 {[%emt 0:00:20]} 10. f3 {[%emt 0:00:13]} Bb7 {[%emt 0:00:03] A31: Symmetrical English: 2 Nf3 Nf6 3 d4.} 11. Qd2 {[%emt 0:00:00]} e6 {[%emt 0:01:45]} 12. Rfd1 {[%emt 0:00:16] White is much more active.} d5 {[%emt 0:00:07]} (12... Nbd7 $14) 13. Nc2 {[%emt 0:01:52]} (13. e5 $18) 13... Re8 {[%emt 0:06:11] [#]} (13... Nbd7 $14) 14. Rac1 $146 {[%emt 0:02:14]} (14. exd5 exd5 15. cxd5 Nbd7 $16) (14. cxd5 $16 exd5 15. Nb4 (15. exd5 Nbd7 $16)) ({Predecessor:} 14. cxd5 exd5 15. exd5 Nbd7 16. Bf1 Rc8 17. Bf2 Bf8 18. Nd4 b5 19. Nc6 Bxc6 20. dxc6 Rxc6 21. Qf4 Qb8 22. Qxb8 Rxb8 23. a4 Bc5 {½-½ (23) Lahav,E (2360)-Busch,K (2330) Netanya 1987}) 14... Qe7 {[%emt 0:02:19]} (14... Nbd7 $11) 15. cxd5 $16 (15. exd5 {looks sharper.} exd5 16. Bxb6 Nbd7 17. Bd4) 15... exd5 {[%emt 0:00:04]} 16. exd5 {[%emt 0:00:49]} (16. Bxb6 $6 dxe4 17. f4 Nbd7 $11) 16... b5 {[%emt 0:00:10]} 17. a3 {[%emt 0:00:44] Prevents b4.} (17. d6 {keeps more tension.} Qe6 18. Re1 Nc6 19. Bf4) 17... Bf8 {[%emt 0:00:50]} (17... Nbd7 $14) 18. Bf1 {[%emt 0:01:37]} Rd8 {[%emt 0:00:09]} (18... Nbd7 $16) 19. Bb6 {[%emt 0:03:07]} (19. b4 $18) 19... Rd7 {[%emt 0:00:10]} (19... Rc8 $16 {might work better.}) 20. Re1 {[%emt 0:01:12]} Qd6 {[%emt 0:00:07]} 21. Qf2 {[%emt 0:00:04]} (21. Bd4 $16) 21... Nxd5 $14 {[%emt 0:00:06]} 22. Nxd5 {[%emt 0:00:08]} Bxd5 $4 {[%emt 0:00:10][%mdl 8192] [#]} ({Better is} 22... Qxd5 $14 23. Nb4 Bxb4 24. axb4 Nc6) 23. Nb4 $2 {[%emt 0:00:10]} (23. Re8 $18 Rc7 24. Bxc7 Qxc7 25. Nb4 Qxc1 26. Nxd5) 23... Be6 $2 {[%emt 0:01:07][%mdl 8192]} ({Black should try} 23... Nc6 $14) 24. Bc5 $2 {[%emt 0:00:10]} (24. Rc8 $18 {Black must now prevent Bc5.} Qd2 25. Nc6 (25. Qc5 Rd8 $16)) 24... Qd2 {[%emt 0:00:04]} 25. Bxf8 {[%emt 0:00:12]} (25. Nd3 {simplifies} Qxf2+ 26. Bxf2 Rd6 27. Nc5) 25... Kxf8 {[%emt 0:00:02]} 26. Qc5+ {[%emt 0:00:10]} (26. Rc8+ {with more complications.} Kg7 27. Re2 Qd4 28. Nc6) 26... Kg8 {[%emt 0:00:26] [#]} 27. Nd3 $1 {[%emt 0:01:30] Hoping for Rcd1.} Rd5 {[%emt 0:00:18]} (27... Rxd3 $2 28. Bxd3 Nd7 29. Qd4 $18) 28. Qb6 {[%emt 0:00:12]} Nd7 {[%emt 0:00:06]} (28... Rxd3 $2 29. Bxd3 Nd7 30. Qd4 $18) 29. Qb7 {[%emt 0:00:10]} ({White should play} 29. Qc6 $14 Rd8 30. Rxe6 (30. Qxa6 Nc5 $11) 30... Rxd3 31. Bxd3 fxe6 32. Qxe6+ Kh8 33. Rc3) 29... Rb8 {[%emt 0:00:09]} (29... Rd8 $11) 30. Rc8+ {[%emt 0:00:03]} ({Reject} 30. Qxa6 Rxd3 31. Bxd3 Qxd3 $15) (30. Qc7 $1 $14) 30... Rxc8 $15 {[%emt 0:00:02]} 31. Qxc8+ {[%emt 0:00:01]} Kg7 {[%emt 0:00:02]} 32. Qc3+ {[%emt 0:02:19]} Qxc3 {[%emt 0:00:24]} 33. bxc3 {[%emt 0:00:00]} Bf5 {[%emt 0:03:48]} 34. Nb4 {[%emt 0:02:09][%csl LRa6,LRd5]} Rc5 {[%emt 0:00:00]} 35. Re3 {[%emt 0:00:00]} a5 {[%emt 0:00:00]} (35... Nb8 $5) 36. Na2 {[%emt 0:00:00]} (36. Na6 $11 Rc8 37. Bxb5) 36... Ne5 {[%emt 0:00:00] Weighted Error Value: White=0.83/Black=0.71} (36... Be6 $142 37. Nc1 b4) 1/2-1/2

[Event "Romanian Team Rapid Women 2022"]
[Site "Sebes"]
[Date "2022.12.03"]
[Round "1.2"]
[White "Chicarosie, Ioana-Bianca"]
[Black "Visanescu, Daria-Ioana"]
[Result "0-1"]
[ECO "E08"]
[WhiteElo "1815"]
[BlackElo "2117"]
[Annotator "TA"]
[PlyCount "87"]
[EventDate "2022.12.03"]
[EventType "rapid"]
[EventCountry "ROU"]
[SourceTitle "playchess.com"]
[Source "ChessBase"]
[SourceQuality "1"]
[TimeControl "900+10"]

{[%evp 16,87,0,-12,14,-12,-33,-24,-16,-31,0,-72,-67,-77,0,0,0,0,0,-14,24,4,25,12,19,-6,0,-20,0,-35,-38,-42,-38,-334,-315,-335,-83,-420,-421,-404,-131,-143,-36,-25,72,-60,-63,-64,0,0,0,0,4,-39,-42,-76,-59,-195,-184,-743,-739,-671,-693,-947,-970,-859,-833,-29991,-29943,-6510,-6279,-6094,-6087,-29999]} 1. d4 {[%emt 0:00:02]} d5 {[%emt 0:00:02]} 2. Nf3 {[%emt 0:00:02]} Nf6 {[%emt 0:00:08]} 3. g3 {[%emt 0:00:03]} e6 {[%emt 0:00:11]} 4. Bg2 {[%emt 0:00:03]} Be7 {[%emt 0:00:03]} 5. O-O {[%emt 0:00:05]} O-O {[%emt 0:00:06]} 6. c4 {[%emt 0:00:06]} c6 {[%emt 0:00:35]} 7. Qc2 {[%emt 0:00:26]} Nbd7 {[%emt 0:00:24] 7...b6 is the modern continuation.} 8. Nc3 {[%emt 0:00:36]} b6 {[%emt 0:00:26]} 9. Rd1 {[%emt 0:01:04]} Bb7 {[%emt 0:00:31] E08: Closed Catalan: Main Line: 7 Qc2.} 10. Ne5 {[%emt 0:01:41]} Nxe5 {[%emt 0:00:59]} 11. dxe5 {[%emt 0:00:02]} Ng4 {[%emt 0:01:07] Black has an edge.} 12. e4 $1 {[%emt 0:02:08][%cal Re4d5]} Bc5 {[%emt 0:00:23] [#]} (12... Nxe5 13. exd5 cxd5 14. cxd5 $16) (12... d4 {is interesting.} 13. Ne2 Bc5 14. b4 d3) 13. Rd2 $146 {[%emt 0:01:47]} (13. exd5 $11 {remains equal.} Nxf2 14. Na4 Nxd1+ 15. Nxc5 bxc5 16. d6) ({Predecessor:} 13. exd5 cxd5 14. Ne4 dxe4 15. Rxd8 Raxd8 16. Bg5 {0-1 (37) Shabalov,A (2506)-Sargissian,G (2684) Wheeling 2014}) 13... d4 $17 {[%emt 0:00:37][%cal Og4f2] Threatens to win with ...Nxf2! Black is more active.} 14. Na4 {[%emt 0:01:16]} Nxe5 {[%emt 0:01:39]} (14... Bb4 $17 15. Rd1 Nxe5) 15. Nxc5 $11 {[%emt 0:00:17]} bxc5 {[%emt 0:00:02]} 16. f4 {[%emt 0:00:51] Inhibits f6.} Ng4 {[%emt 0:01:01]} 17. Rd3 {[%emt 0:00:32] Inhibits Ne3.} (17. Bf3 $5 {[%cal Rf3g4]} Nh6 18. e5 $11) 17... Qc7 {[%emt 0:02:03]} (17... e5 $5 {[%cal Re5f4]}) 18. Qe2 {[%emt 0:00:43]} Nf6 {[%emt 0:00:28]} 19. e5 {[%emt 0:00:46]} Nd7 {[%emt 0:00:08]} 20. Qh5 {[%emt 0:01:50]} f6 {[%emt 0:03:10]} 21. exf6 {[%emt 0:00:25]} Rxf6 {[%emt 0:00:02][%cal Bf8f6,Bf6h6,Bh6g6,Bg6g4][%mdl 32]} 22. g4 {[%emt 0:01:37]} Rh6 {[%emt 0:00:33]} 23. Qg5 {[%emt 0:00:11]} Rf8 {[%emt 0:00:17]} 24. h4 $2 {[%emt 0:01:00][%mdl 8192]} (24. Bd2 $15) 24... Rg6 $19 {[%emt 0:01:32]} 25. Qh5 {[%emt 0:00:01]} Nf6 $2 {[%emt 0:00:43] Against g5} (25... e5 $19 26. g5 exf4) 26. Qxc5 $2 {[%emt 0:00:01][%mdl 8192]} (26. Qe5 $17 {was the crucial defense.} Qxe5 27. fxe5 Nxg4 28. Be4) 26... Rxg4 {[%emt 0:00:11]} (26... Nxg4 27. h5 Rgf6 28. Qg5 $17) 27. Rxd4 {[%emt 0:00:39]} Nd7 $2 {[%emt 0:00:45]} (27... Rxh4 28. Be3 $17) (27... Qc8 $19 28. f5 Rxg2+ $1 {[%mdl 512]} 29. Kxg2 e5) 28. Qd6 $17 {[%emt 0:00:31] [#]} (28. Qxa7 $2 c5 $19) (28. Qe7 $2 Rxg2+ $1 {[%mdl 512]} 29. Kxg2 (29. Kh1 $2 c5 $19) 29... c5+ $19) 28... Qxd6 {[%emt 0:01:05]} (28... Qb6 $1 $17 {aiming for ...c5.} 29. Qxe6+ (29. Qxd7 $2 {loses.} Rxg2+ 30. Kxg2 c5+ 31. Kh2 cxd4 $19) 29... Rf7) 29. Rxd6 $15 {[%emt 0:00:01]} Rf7 {[%emt 0:00:31]} (29... c5 $11 30. Rxd7 Rxg2+ 31. Kf1 Bc6) 30. Rxe6 {[%emt 0:00:49]} ({White should play} 30. Kh2 $16) 30... c5 $1 $36 {[%emt 0:00:07][%mdl 2048] Black has the initiative.} 31. Re2 {[%emt 0:00:01]} ({But not} 31. Re8+ Nf8 32. Re2 Rd7 $17) 31... Bxg2 {[%emt 0:00:19]} (31... Nf6 $15 32. Kh1 Rxh4+ 33. Kg1 Rg4) 32. Rxg2 $11 {[%emt 0:00:01]} Rxh4 {[%emt 0:00:03]} 33. Be3 {[%emt 0:00:07]} Re7 {[%emt 0:00:14]} 34. Kf2 {[%emt 0:00:21]} Nf6 {[%emt 0:00:12]} 35. Rd1 {[%emt 0:00:26]} Kf7 {[%emt 0:00:10]} (35... Ng4+ $5 36. Rxg4 Rxg4 $15) 36. Bd2 {[%emt 0:00:12] [#]} ({White should try} 36. Bc1 $15) 36... Ne4+ $1 $19 {[%emt 0:00:07]} 37. Kf3 $2 {[%emt 0:00:03]} (37. Kg1) 37... Rh3+ {[%emt 0:00:10]} 38. Kg4 {[%emt 0:00:14]} Rd3 {[%emt 0:00:09] White must now prevent ...Re6.} 39. Kf5 {[%emt 0:00:24]} g6+ {[%emt 0:00:09]} 40. Kg4 {[%emt 0:00:02]} Red7 {[%emt 0:00:14]} 41. Rh2 {[%emt 0:00:18]} h5+ {[%emt 0:00:03]} 42. Kh4 {[%emt 0:00:04]} Rxd2 {[%emt 0:00:04]} 43. Rhxd2 {[%emt 0:00:14]} Rxd2 {[%emt 0:00:02][%cal Rd2h2]} 44. Re1 {[%emt 0:00:01] Weighted Error Value: White=0.86/Black=0.39} 0-1

[Event "Romanian Team Rapid Women 2022"]
[Site "Sebes"]
[Date "2022.12.03"]
[Round "1.3"]
[White "Bucur, Denisa-Andreea"]
[Black "Hoanca, Alexia-Ioana"]
[Result "1-0"]
[ECO "A46"]
[WhiteElo "1953"]
[BlackElo "1644"]
[Annotator "TA"]
[PlyCount "123"]
[EventDate "2022.12.03"]
[EventType "rapid"]
[EventCountry "ROU"]
[SourceTitle "playchess.com"]
[Source "ChessBase"]
[SourceQuality "1"]
[TimeControl "900+10"]

{[%evp 9,123,-7,0,0,0,0,0,-18,-12,-18,0,-17,-10,-35,0,0,0,-25,13,-52,14,7,0,0,0,0,0,0,16,-8,3,0,39,36,42,34,89,87,93,87,109,91,121,96,118,115,116,27,37,26,75,66,101,0,85,65,76,60,149,128,375,380,377,368,364,362,353,349,328,268,266,247,361,397,429,427,829,809,709,641,1013,1015,1015,999,1001,1001,983,972,900,861,29990,29984,29984,29980,29984,29983,29994,29971,29985,29972,5839,5306,29979,29980,29980,29981,29981,29979,29979,29979,29977,29973,29982,29983,29982,29980]} 1. Nf3 {[%emt 0:00:04]} Nf6 {[%emt 0:00:01]} 2. d4 {[%emt 0:00:02]} c5 {[%emt 0:00:01]} 3. dxc5 {[%emt 0:00:01]} Na6 {[%emt 0:00:02]} 4. a3 {[%emt 0:00:33]} Nxc5 {[%emt 0:00:29] [#]} 5. e3 $146 {[%emt 0:00:05]} ({Predecessor:} 5. b4 Nce4 6. Bb2 a5 7. c3 Ng4 8. Qd4 Ngxf2 9. Rg1 d6 10. e3 e5 11. Qd5 Qb6 {0-1 (65) Galaviz Medina,S (2299)-Vera Gonzalez Quevedo,R (2436) Merida 2019}) 5... a5 {[%emt 0:00:19]} 6. b3 {[%emt 0:00:46] A46: 1 d4 Nf6 2 Nf3 e6: Torre, London and Colle Systems.} g6 {[%emt 0:00:20]} 7. Bb2 {[%emt 0:00:05]} Bg7 {[%emt 0:00:02]} 8. Nbd2 {[%emt 0:01:19] The position is equal.} O-O {[%emt 0:00:18]} 9. Be2 {[%emt 0:00:30]} d6 {[%emt 0:00:32]} 10. O-O {[%emt 0:00:13]} Bd7 {[%emt 0:00:55]} 11. c4 {[%emt 0:00:46]} Bc6 {[%emt 0:00:34]} 12. Nd4 {[%emt 0:00:21]} Bd7 {[%emt 0:00:26]} 13. Bf3 {[%emt 0:02:06]} Rb8 {[%emt 0:00:13]} 14. b4 {[%emt 0:00:47]} (14. a4 $11) 14... Ne6 {[%emt 0:01:23]} (14... Na4 $1 $15 15. Bc1 Qc7) 15. Rc1 {[%emt 0:04:24]} Nxd4 {[%emt 0:01:04]} 16. exd4 {[%emt 0:00:12]} axb4 {[%emt 0:02:49]} 17. axb4 {[%emt 0:00:01]} d5 {[%emt 0:00:33]} 18. c5 {[%emt 0:00:28]} Bb5 {[%emt 0:01:23]} 19. Re1 {[%emt 0:00:16]} (19. Be2 $5 {[%cal Re2b5]} Qd7 20. Nf3 $11) 19... e6 {[%emt 0:00:44]} 20. Be2 {[%emt 0:00:38]} Bxe2 {[%emt 0:00:41]} 21. Qxe2 {[%emt 0:00:01]} b6 {[%emt 0:00:22]} 22. c6 {[%emt 0:01:17] Threatens to win with c7.} Qc7 {[%emt 0:00:31] [#]} (22... Ra8 $14) 23. b5 $1 $16 {[%emt 0:00:07]} Ra8 {[%emt 0:00:32]} 24. Ra1 {[%emt 0:00:06] Inhibits Ra2.} h5 {[%emt 0:00:18]} 25. h3 {[%emt 0:00:54]} Bh6 {[%emt 0:01:00]} 26. Nf3 {[%emt 0:00:13]} Ne4 {[%emt 0:00:36]} 27. Ne5 {[%emt 0:00:14]} Bg7 {[%emt 0:01:06]} 28. Nd3 {[%emt 0:01:06] White is more active.} ({White should try} 28. g3 $16) 28... Nd6 $11 {[%emt 0:00:20]} 29. Nb4 {[%emt 0:00:03]} Nc4 {[%emt 0:00:37]} (29... Rfc8 $11 {should be considered.}) 30. Bc3 {[%emt 0:00:15]} (30. Rxa8 {simplifies} Rxa8 31. Ra1 Rxa1+ 32. Bxa1 Qd8 33. Bc3) 30... Qf4 {[%emt 0:00:41]} 31. Qd3 {[%emt 0:00:55]} ({White should play} 31. Nd3 $16 Qh4 32. Rxa8 Rxa8 33. Ne5) 31... g5 {[%emt 0:00:48]} (31... Nd6 $11) 32. g3 {[%emt 0:00:45]} (32. Nc2 {is interesting.} Rfc8 33. Bb4 h4 34. Be7) 32... Qf6 {[%emt 0:00:12]} 33. Nc2 {[%emt 0:00:15]} g4 {[%emt 0:00:22]} (33... Rfc8 $14) 34. h4 {[%emt 0:00:03]} Qd8 $2 {[%emt 0:00:12] This costs Black the game.} (34... Rfe8 $16) 35. Rxa8 $18 {[%emt 0:00:09]} Qxa8 {[%emt 0:00:00]} 36. Ra1 {[%emt 0:00:03] Inhibits Qa4.} Qb8 {[%emt 0:00:06]} 37. Ne3 {[%emt 0:00:20][%cal Bc2e3,Be3g2,Bg2f4,Bf4e6,Be6f4,Bf4d5,Bd5e7][%mdl 32]} Nd6 {[%emt 0:00:03]} 38. Bb4 {[%emt 0:00:05]} Rc8 {[%emt 0:00:14]} 39. Ra6 {[%emt 0:00:26] Strongly threatening Bxd6.} Ne4 {[%emt 0:00:12]} 40. Be1 {[%emt 0:00:12]} f5 {[%emt 0:00:14]} (40... Bf6 {was worth a try.} 41. Ng2 Qc7) 41. Ng2 {[%emt 0:00:02]} Qc7 {[%emt 0:00:18]} 42. Nf4 {[%emt 0:00:04]} Rb8 {[%emt 0:00:16]} (42... Re8 $142 43. Bd2 Bf8 44. Nxh5 Qf7) 43. Nxe6 {[%emt 0:00:06]} Qd6 {[%emt 0:00:10]} 44. Nf4 {[%emt 0:00:25]} Qf6 {[%emt 0:00:10]} 45. Nxd5 {[%emt 0:00:25]} Qxd4 {[%emt 0:00:03]} 46. Qxd4 {[%emt 0:00:04]} Bxd4 {[%emt 0:00:02]} 47. Ne7+ {[%emt 0:00:25]} Kf7 {[%emt 0:00:19]} 48. c7 {[%emt 0:00:05]} Re8 {[%emt 0:00:14]} 49. c8=Q {[%emt 0:00:02]} ({Less strong is} 49. c8=R Rxe7 50. Kf1 Rd7 $18) 49... Rxe7 {[%emt 0:00:01]} 50. Qxf5+ {[%emt 0:00:02]} Nf6 {[%emt 0:00:01]} 51. Kf1 {[%emt 0:00:15]} Rc7 {[%emt 0:00:17]} 52. Ra2 {[%emt 0:00:10]} Rc1 {[%emt 0:00:14]} 53. Re2 {[%emt 0:00:01]} Bc3 {[%emt 0:00:07]} 54. Re3 {[%emt 0:00:17]} Bd4 {[%emt 0:00:22]} 55. Re6 {[%emt 0:00:05][%cal Oe6f6] White wants to mate with Rxf6+!} Bc3 {[%emt 0:00:05] [#]} 56. Rxf6+ $1 {[%emt 0:00:30] White mates.} Bxf6 {[%emt 0:00:03]} 57. Qxh5+ {[%emt 0:00:02]} Ke7 {[%emt 0:00:08]} 58. Qh7+ {[%emt 0:00:18]} Ke6 {[%emt 0:00:10]} 59. Qe4+ {[%emt 0:00:04]} Kf7 {[%emt 0:00:45]} 60. Qxg4 {[%emt 0:00:05]} Ke7 {[%emt 0:00:00]} 61. Qe4+ {[%emt 0:00:05]} Kf7 {[%emt 0:00:00]} 62. h5 {[%emt 0:00:02] Weighted Error Value: White=0.17 (very precise) /Black=0.44} 1-0

[Event "Romanian Team Rapid Women 2022"]
[Site "Sebes"]
[Date "2022.12.03"]
[Round "1.4"]
[White "Voicu-Jagodzinsky, Carmen"]
[Black "Sariteanu, Sabina"]
[Result "1/2-1/2"]
[ECO "D37"]
[WhiteElo "2300"]
[BlackElo "1752"]
[Annotator "TA"]
[PlyCount "78"]
[EventDate "2022.12.03"]
[EventType "rapid"]
[EventCountry "ROU"]
[SourceTitle "playchess.com"]
[Source "ChessBase"]
[SourceQuality "1"]
[TimeControl "900+10"]

{[%evp 12,78,24,-5,18,7,56,29,65,41,35,14,42,-52,-36,-120,-110,-129,-135,-236,-237,-242,-252,-249,-242,-583,-604,-586,-628,-614,-606,-580,-686,-680,-679,-677,-672,-590,-614,-675,-667,-672,-437,-784,-432,-762,-769,-766,-742,-932,-900,-1475,-1426,-1341,-1083,-1201,-866,-1295,-1083,-1132,-1120,-972,-983,-1091,-1068,-989,-975,-811,-652]} 1. d4 {[%emt 0:00:03]} Nf6 {[%emt 0:00:02]} 2. c4 {[%emt 0:00:01]} e6 {[%emt 0:00:03]} 3. Nf3 {[%emt 0:00:01]} d5 {[%emt 0:00:03]} 4. Nc3 {[%emt 0:00:02]} Be7 {[%emt 0:00:03]} 5. Bf4 {[%emt 0:00:02]} O-O {[%emt 0:00:06]} 6. e3 {[%emt 0:00:06]} Nbd7 {[%emt 0:00:05]} 7. h3 {[%emt 0:00:08]} a6 {[%emt 0:01:39] D37: Queen's Gambit Declined: 5 Bf4.} 8. c5 {[%emt 0:02:07]} Ne4 {[%emt 0:00:10]} (8... b6 $11) 9. Rc1 {[%emt 0:00:36]} f5 {[%emt 0:00:10][%cal Bf7f5,Bf5e4][%mdl 32] White has an edge.} 10. h4 {[%emt 0:01:08] [#]} c6 $146 {[%emt 0:00:33]} ({Predecessor:} 10... Ndf6 11. Ne5 Nxc3 12. bxc3 Qe8 13. h5 Nd7 14. Bd3 Bf6 15. Nf3 e5 16. dxe5 Bxe5 17. Nxe5 Nxe5 {½-½ (27) Levay,K-Havasi,K Debrecen 1913}) 11. g3 {[%emt 0:00:49]} Bf6 {[%emt 0:00:57]} 12. Nxe4 {[%emt 0:01:56]} (12. Be2 $14) 12... fxe4 $15 {[%emt 0:00:08]} 13. Ng5 {[%emt 0:00:00] Black keeps a firm grip on the game.} ({White should play} 13. Ne5 $1 $15) 13... Qa5+ $17 {[%emt 0:03:25]} 14. Rc3 {[%emt 0:05:11] Qh5 is the strong threat.} e5 $1 {[%emt 0:00:08]} (14... Qxa2 15. Bh3 Bd8 16. Bxe6+ (16. Nxe6 Re8 $14) 16... Kh8 17. Nxh7 $1 {[%mdl 512]} (17. Nxe4 Nf6 $14) 17... Rxf4 18. exf4 $18) 15. Qh5 {[%emt 0:00:56]} (15. Bh3 $17 Nxc5 16. Bxc8 Raxc8 17. Kf1) 15... h6 $19 {[%emt 0:00:21]} (15... exf4 $2 16. Qxh7#) 16. Qg6 {[%emt 0:01:04][%csl Gg5][%cal Rg6h7]} hxg5 {[%emt 0:02:47]} (16... exf4 $2 17. Qh7#) 17. hxg5 {[%emt 0:00:03][%cal Of1h3] And now Bh3! would win.} exf4 {[%emt 0:03:53]} (17... exd4 {[#] leads to mate.} 18. Rh8+ $3 {[%mdl 512]} Kxh8 19. Qh5+ Kg8 20. g6 $1) 18. gxf6 $2 {[%emt 0:03:10]} (18. gxf4 {is tougher.} Qxa2 19. Rc2) 18... Nxf6 {[%emt 0:00:18] Black is clearly winning.} (18... Qxa2 $2 19. Qxg7#) 19. a3 {[%emt 0:00:04]} fxe3 {[%emt 0:00:35]} 20. fxe3 {[%emt 0:00:11]} Bg4 {[%emt 0:00:24] Hoping for ...Qa4.} 21. Rh4 {[%emt 0:00:38]} Qc7 {[%emt 0:00:30]} 22. Rxg4 {[%emt 0:00:05]} Nxg4 {[%emt 0:00:01]} 23. Qxg4 {[%emt 0:00:01]} Rf3 {[%emt 0:00:17]} 24. Qe6+ {[%emt 0:00:18]} Qf7 {[%emt 0:00:02]} 25. Qxf7+ {[%emt 0:00:15]} Kxf7 {[%emt 0:00:03][%cal Bg8f7,Bf7f6,Bf6g5][%mdl 4128] Endgame KRR-KRB} 26. Rb3 {[%emt 0:00:12]} Ra7 {[%emt 0:00:04]} 27. g4 {[%emt 0:00:03]} (27. Bh3 $142 Ke7 28. Bc8) 27... Kf6 {[%emt 0:00:09]} 28. Be2 {[%emt 0:00:01]} (28. Bg2 $142 Rg3 29. Kf2 Rxg4 30. Bh3) 28... Rh3 {[%emt 0:00:05]} 29. Kd2 {[%emt 0:00:23]} Kg5 {[%emt 0:00:16]} 30. Rc3 {[%emt 0:00:01]} g6 {[%emt 0:00:08]} 31. Rc1 {[%emt 0:00:01]} Ra8 {[%emt 0:00:18]} 32. Rf1 {[%emt 0:00:01]} Rh7 {[%emt 0:00:04]} 33. Rf2 {[%emt 0:00:11]} Re8 {[%emt 0:00:03]} 34. b4 {[%emt 0:00:23]} Ree7 {[%emt 0:00:01]} 35. a4 {[%emt 0:00:16]} Ref7 {[%emt 0:00:02]} 36. Rg2 {[%emt 0:00:02]} Rh1 {[%emt 0:00:08]} 37. b5 {[%emt 0:00:05]} axb5 38. axb5 {[%emt 0:00:01]} Rf8 {[%emt 0:00:45] Threatens to win with ...Ra8.} 39. bxc6 {[%emt 0:00:27]} bxc6 {[%emt 0:00:01][%mdl 32768] Weighted Error Value: White=0.88/Black=0.50. An unexpected result.} 1/2-1/2